[Event "GrandPrix_30.05"]
[Site "Chess.com"]
[Date "2020.05.30"]
[Round "6"]
[White "VojtechPlat"]
[Black "Spartakus1975"]
[Result "1/2-1/2"]
[WhiteElo "2296"]
[BlackElo "2471"]
[TimeControl "600+2"]
[EndTime "11:01:56 PDT"]
[Termination "Game drawn - insufficient material"]

1. e4 {[%clk 0:09:56.5]} 1... e6 {[%clk 0:10:00.1]} 2. Qe2 {[%clk 0:09:55.5]}
2... Nc6 {[%clk 0:09:58.2]} 3. Nf3 {[%clk 0:09:54.2]} 3... e5 {[%clk 0:09:58.6]}
4. b3 {[%clk 0:09:48.1]} 4... g6 {[%clk 0:09:49.8]} 5. Bb2 {[%clk 0:09:48.3]}
5... Bg7 {[%clk 0:09:50.2]} 6. h3 {[%clk 0:09:30.4]} 6... Nge7 {[%clk
0:09:49.1]} 7. Nc3 {[%clk 0:09:26.5]} 7... O-O {[%clk 0:09:40.2]} 8. O-O-O
{[%clk 0:09:26.6]} 8... d5 {[%clk 0:09:14.2]} 9. exd5 {[%clk 0:09:19.7]} 9...
Nxd5 {[%clk 0:09:15.2]} 10. Nxd5 {[%clk 0:09:08.4]} 10... Qxd5 {[%clk
0:09:15.8]} 11. Qb5 {[%clk 0:09:09.2]} 11... Be6 {[%clk 0:08:58.3]} 12. Ng5
{[%clk 0:08:38.2]} 12... Qxb5 {[%clk 0:08:49.8]} 13. Bxb5 {[%clk 0:08:37.8]}
13... Bd5 {[%clk 0:08:48.3]} 14. f3 {[%clk 0:07:58.5]} 14... a6 {[%clk
0:08:47.9]} 15. Be2 {[%clk 0:07:53.5]} 15... f5 {[%clk 0:08:29.4]} 16. c4 {[%clk
0:07:18.6]} 16... Bf7 {[%clk 0:08:29.6]} 17. g4 {[%clk 0:06:56.7]} 17... Rad8
{[%clk 0:08:02.4]} 18. gxf5 {[%clk 0:06:44.6]} 18... gxf5 {[%clk 0:08:02.6]} 19.
Rhg1 {[%clk 0:06:11.7]} 19... Kh8 {[%clk 0:07:50.8]} 20. f4 {[%clk 0:05:51.1]}
20... Nd4 {[%clk 0:07:34.1]} 21. Nxf7+ {[%clk 0:05:50.3]} 21... Rxf7 {[%clk
0:07:34.2]} 22. Bh5 {[%clk 0:05:50.8]} 22... Rfd7 {[%clk 0:07:07.8]} 23. fxe5
{[%clk 0:05:42]} 23... Bxe5 {[%clk 0:07:08.5]} 24. Rde1 {[%clk 0:05:40.1]} 24...
Bg7 {[%clk 0:06:58.5]} 25. c5 {[%clk 0:05:25.2]} 25... a5 {[%clk 0:06:33.6]} 26.
Kb1 {[%clk 0:05:06.1]} 26... Nc6 {[%clk 0:06:13.4]} 27. Be8 {[%clk 0:03:58.2]}
27... Bxb2 {[%clk 0:06:01.1]} 28. Bxd7 {[%clk 0:03:58.7]} 28... Bd4 {[%clk
0:05:50.5]} 29. Rg5 {[%clk 0:03:54.4]} 29... h6 {[%clk 0:05:28.4]} 30. Bxc6
{[%clk 0:03:19.9]} 30... hxg5 {[%clk 0:05:28.1]} 31. Bxb7 {[%clk 0:03:21]} 31...
Bxc5 {[%clk 0:05:26.5]} 32. Re5 {[%clk 0:03:21.4]} 32... Bb4 {[%clk 0:04:41.8]}
33. Rxf5 {[%clk 0:03:18.8]} 33... Rxd2 {[%clk 0:04:42.4]} 34. Rxg5 {[%clk
0:03:08]} 34... Kh7 {[%clk 0:04:31.4]} 35. Be4+ {[%clk 0:03:00.2]} 35... Kh6
{[%clk 0:04:31.6]} 36. Rg6+ {[%clk 0:02:57.2]} 36... Kh5 {[%clk 0:04:32.5]} 37.
Rc6 {[%clk 0:02:35]} 37... Ba3 {[%clk 0:04:30.2]} 38. Bc2 {[%clk 0:02:28.2]}
38... Rh2 {[%clk 0:04:23.3]} 39. Bd1+ {[%clk 0:01:47.8]} 39... Kh4 {[%clk
0:04:21.4]} 40. Rxc7 {[%clk 0:01:43.9]} 40... Rb2+ {[%clk 0:04:16.3]} 41. Ka1
{[%clk 0:01:42.4]} 41... Rd2 {[%clk 0:04:17.2]} 42. Bg4 {[%clk 0:01:26.7]} 42...
Bd6 {[%clk 0:03:47.3]} 43. Rd7 {[%clk 0:01:22.3]} 43... Be5+ {[%clk 0:03:29.4]}
44. Kb1 {[%clk 0:01:22.6]} 44... Rb2+ {[%clk 0:03:30.8]} 45. Kc1 {[%clk
0:01:23.1]} 45... Rxa2 {[%clk 0:03:32.4]} 46. Rd5 {[%clk 0:01:20]} 46... Bg7
{[%clk 0:02:58.5]} 47. Bd7 {[%clk 0:01:19.2]} 47... Bc3 {[%clk 0:02:42.5]} 48.
Rd3 {[%clk 0:01:17.4]} 48... Bb4 {[%clk 0:02:35.4]} 49. Rd4+ {[%clk 0:01:17.3]}
49... Kg3 {[%clk 0:02:36.5]} 50. Rg4+ {[%clk 0:01:12.6]} 50... Kf3 {[%clk
0:02:32.4]} 51. Bc6+ {[%clk 0:01:09.9]} 51... Ke3 {[%clk 0:02:32.7]} 52. h4
{[%clk 0:01:10.6]} 52... Ba3+ {[%clk 0:02:23.1]} 53. Kb1 {[%clk 0:01:08.9]}
53... Rb2+ {[%clk 0:02:13.7]} 54. Ka1 {[%clk 0:01:09.8]} 54... Rh2 {[%clk
0:02:14.1]} 55. Bg2 {[%clk 0:01:10.2]} 55... Kf2 {[%clk 0:02:00.3]} 56. Bd5
{[%clk 0:01:07.7]} 56... Ke3 {[%clk 0:01:48.9]} 57. Bg2 {[%clk 0:00:56.9]} 57...
Kf2 {[%clk 0:01:47.8]} 58. Bd5 {[%clk 0:00:57.4]} 58... Be7 {[%clk 0:01:41.2]}
59. Rf4+ {[%clk 0:00:57.1]} 59... Kg3 {[%clk 0:01:33.3]} 60. Rf3+ {[%clk
0:00:57.9]} 60... Kg4 {[%clk 0:01:33.9]} 61. Rd3 {[%clk 0:00:51.8]} 61... Bxh4
{[%clk 0:01:26.6]} 62. Bc4 {[%clk 0:00:48.2]} 62... Bf6+ {[%clk 0:01:23.5]} 63.
Kb1 {[%clk 0:00:49.2]} 63... Kf4 {[%clk 0:01:24.2]} 64. Rd5 {[%clk 0:00:41.9]}
64... Bc3 {[%clk 0:01:19.2]} 65. Kc1 {[%clk 0:00:42.7]} 65... Ke4 {[%clk
0:01:14.7]} 66. Rd8 {[%clk 0:00:43.4]} 66... Bb2+ {[%clk 0:01:13.7]} 67. Kd1
{[%clk 0:00:43.6]} 67... Bd4 {[%clk 0:01:06.1]} 68. Re8+ {[%clk 0:00:42.6]}
68... Be5 {[%clk 0:01:07.1]} 69. Rd8 {[%clk 0:00:42.4]} 69... Bf4 {[%clk
0:01:05.5]} 70. Re8+ {[%clk 0:00:21.3]} 70... Kd4 {[%clk 0:01:05.4]} 71. Rd8+
{[%clk 0:00:22.4]} 71... Kc3 {[%clk 0:01:05.8]} 72. Rd3+ {[%clk 0:00:23.2]}
72... Kb4 {[%clk 0:01:01.6]} 73. Bd5 {[%clk 0:00:24.3]} 73... Be5 {[%clk
0:00:56.7]} 74. Be6 {[%clk 0:00:24.7]} 74... Bc3 {[%clk 0:00:56.2]} 75. Bd5
{[%clk 0:00:24.8]} 75... Bf6 {[%clk 0:00:50.9]} 76. Be6 {[%clk 0:00:25.6]} 76...
Bg7 {[%clk 0:00:52]} 77. Bd5 {[%clk 0:00:26.1]} 77... Bc3 {[%clk 0:00:53]} 78.
Be6 {[%clk 0:00:24.6]} 78... Rh1+ {[%clk 0:00:53.9]} 79. Kc2 {[%clk 0:00:25.8]}
79... Rh2+ {[%clk 0:00:48.3]} 80. Kd1 {[%clk 0:00:26.6]} 80... Bb2 {[%clk
0:00:37.4]} 81. Bd5 {[%clk 0:00:27.5]} 81... Kc5 {[%clk 0:00:32.5]} 82. Be6
{[%clk 0:00:27.6]} 82... Bd4 {[%clk 0:00:33.9]} 83. Bf7 {[%clk 0:00:27]} 83...
Rf2 {[%clk 0:00:30.3]} 84. Bg8 {[%clk 0:00:27.2]} 84... Rf6 {[%clk 0:00:25.6]}
85. Rd2 {[%clk 0:00:26.9]} 85... Rg6 {[%clk 0:00:21.9]} 86. Bf7 {[%clk
0:00:27.6]} 86... Rg7 {[%clk 0:00:19.8]} 87. Be6 {[%clk 0:00:27.8]} 87... Bc3
{[%clk 0:00:20.7]} 88. Re2 {[%clk 0:00:27.3]} 88... Kd4 {[%clk 0:00:19.7]} 89.
Kc2 {[%clk 0:00:27.2]} 89... Rc7 {[%clk 0:00:18.2]} 90. Kb1 {[%clk 0:00:26.5]}
90... Kd3 {[%clk 0:00:17.8]} 91. Rc2 {[%clk 0:00:27.1]} 91... Rb7 {[%clk
0:00:13.9]} 92. Bc4+ {[%clk 0:00:26.1]} 92... Kd4 {[%clk 0:00:14.6]} 93. Rh2
{[%clk 0:00:21.4]} 93... a4 {[%clk 0:00:15.2]} 94. Rh4+ {[%clk 0:00:19.7]} 94...
Kc5 {[%clk 0:00:15.7]} 95. Ka2 {[%clk 0:00:20.3]} 95... Bd4 {[%clk 0:00:14.5]}
96. Rh5+ {[%clk 0:00:18.5]} 96... Kb4 {[%clk 0:00:15.2]} 97. Rh4 {[%clk
0:00:08.1]} 97... axb3+ {[%clk 0:00:15.5]} 98. Bxb3 {[%clk 0:00:09.2]} 98...
Ra7+ {[%clk 0:00:16.3]} 99. Kb1 {[%clk 0:00:10.1]} 99... Kxb3 {[%clk 0:00:07.8]}
100. Rxd4 {[%clk 0:00:10.8]} 100... Rc7 {[%clk 0:00:08.5]} 101. Rd3+ {[%clk
0:00:11.4]} 101... Rc3 {[%clk 0:00:09.9]} 102. Rxc3+ {[%clk 0:00:12.4]} 102...
Kxc3 {[%clk 0:00:11.5]} 1/2-1/2

[Event "GrandPrix_30.05"]
[Site "Chess.com"]
[Date "2020.05.30"]
[Round "6"]
[White "Chessbuster123"]
[Black "woodhy"]
[Result "0-1"]
[WhiteElo "1938"]
[BlackElo "2189"]
[TimeControl "600+2"]
[EndTime "11:02:44 PDT"]
[Termination "woodhy won by checkmate"]

1. d4 {[%clk 0:10:01.9]} 1... Nf6 {[%clk 0:09:59.7]} 2. c4 {[%clk 0:10:01.9]}
2... e6 {[%clk 0:09:57.5]} 3. Nc3 {[%clk 0:09:58.3]} 3... Bb4 {[%clk 0:09:55.3]}
4. e3 {[%clk 0:09:59.1]} 4... b6 {[%clk 0:09:54]} 5. Bd3 {[%clk 0:09:55.9]} 5...
Bb7 {[%clk 0:09:52.8]} 6. f3 {[%clk 0:09:56.5]} 6... O-O {[%clk 0:09:50.6]} 7.
Ne2 {[%clk 0:09:56.3]} 7... c5 {[%clk 0:09:40.3]} 8. O-O {[%clk 0:09:52]} 8...
cxd4 {[%clk 0:09:05.1]} 9. Nxd4 {[%clk 0:09:49.4]} 9... Nc6 {[%clk 0:09:00.3]}
10. Nxc6 {[%clk 0:09:35.5]} 10... Bxc6 {[%clk 0:08:56.5]} 11. e4 {[%clk
0:09:22.4]} 11... h6 {[%clk 0:07:58]} 12. e5 {[%clk 0:08:47.9]} 12... Ne8 {[%clk
0:07:55.8]} 13. Bc2 {[%clk 0:08:47.2]} 13... f5 {[%clk 0:07:48.9]} 14. exf6
{[%clk 0:08:34.7]} 14... Nxf6 {[%clk 0:07:42.4]} 15. Qd3 {[%clk 0:08:26.8]}
15... Rc8 {[%clk 0:07:29.4]} 16. Bxh6 {[%clk 0:07:52.5]} 16... Qe8 {[%clk
0:06:51.6]} 17. Bf4 {[%clk 0:07:15]} 17... Qh5 {[%clk 0:06:29.9]} 18. Bd6 {[%clk
0:07:02.1]} 18... Bc5+ {[%clk 0:06:07.6]} 19. Kh1 {[%clk 0:06:50.4]} 19... Bxd6
{[%clk 0:05:43.7]} 20. Qxd6 {[%clk 0:06:52.3]} 20... Bb7 {[%clk 0:05:42.8]} 21.
b3 {[%clk 0:06:17.9]} 21... Rc6 {[%clk 0:04:53]} 22. Qd4 {[%clk 0:05:57.3]}
22... Rc5 {[%clk 0:04:31.2]} 23. Ne4 {[%clk 0:05:54]} 23... Bxe4 {[%clk
0:04:14.9]} 24. Bxe4 {[%clk 0:05:55.9]} 24... Qh4 {[%clk 0:04:11.5]} 25. g3
{[%clk 0:05:23.7]} 25... Qh3 {[%clk 0:04:05.3]} 26. Rf2 {[%clk 0:04:18.9]} 26...
Nh5 {[%clk 0:02:42.5]} 27. Rg1 {[%clk 0:04:10.6]} 27... Rg5 {[%clk 0:02:38.1]}
28. Rfg2 {[%clk 0:03:26.9]} 28... Nf6 {[%clk 0:02:27.1]} 29. f4 {[%clk
0:03:00.4]} 29... Rh5 {[%clk 0:01:56.7]} 30. Bf3 {[%clk 0:02:59.5]} 30... Rh6
{[%clk 0:01:51.1]} 31. Rd2 {[%clk 0:02:45.4]} 31... Kf7 {[%clk 0:01:42]} 32. Qf2
{[%clk 0:02:10.3]} 32... Ke7 {[%clk 0:00:53]} 33. Qg2 {[%clk 0:01:34.9]} 33...
Qf5 {[%clk 0:00:47.8]} 34. Qe2 {[%clk 0:01:06.5]} 34... Rfh8 {[%clk 0:00:45]}
35. Rg2 {[%clk 0:01:02.6]} 35... g5 {[%clk 0:00:32.1]} 36. Qe5 {[%clk
0:00:57.3]} 36... Qb1+ {[%clk 0:00:23.4]} 37. Rd1 {[%clk 0:00:57.3]} 37... Qh7
{[%clk 0:00:12.9]} 38. Rdd2 {[%clk 0:00:16.9]} 38... Qb1+ {[%clk 0:00:12.5]} 39.
Rg1 {[%clk 0:00:10.7]} 39... Qh7 {[%clk 0:00:08.6]} 40. Rgg2 {[%clk 0:00:11.2]}
40... g4 {[%clk 0:00:09.6]} 41. Bd1 {[%clk 0:00:05.4]} 41... Rh5 {[%clk
0:00:10.7]} 42. Qd6+ {[%clk 0:00:03.7]} 42... Kf7 {[%clk 0:00:11.5]} 43. Bc2
{[%clk 0:00:04.7]} 43... Qh6 {[%clk 0:00:12.4]} 44. Qd4 {[%clk 0:00:03.8]} 44...
Qf8 {[%clk 0:00:11.9]} 45. Qd6 {[%clk 0:00:04.1]} 45... Qxd6 {[%clk 0:00:12.4]}
46. Rxd6 {[%clk 0:00:06]} 46... Ke7 {[%clk 0:00:12.9]} 47. Rdd2 {[%clk
0:00:06.2]} 47... b5 {[%clk 0:00:13.7]} 48. cxb5 {[%clk 0:00:04.5]} 48... Rxb5
{[%clk 0:00:14]} 49. Rge2 {[%clk 0:00:03.6]} 49... Ra5 {[%clk 0:00:14.5]} 50. a4
{[%clk 0:00:03.8]} 50... Nh5 {[%clk 0:00:15]} 51. Kg2 {[%clk 0:00:04.1]} 51...
Ra6 {[%clk 0:00:15.5]} 52. f5 {[%clk 0:00:04.9]} 52... Rb6 {[%clk 0:00:16]} 53.
fxe6 {[%clk 0:00:05.7]} 53... dxe6 {[%clk 0:00:17.9]} 54. Re3 {[%clk 0:00:05.1]}
54... Nf6 {[%clk 0:00:18.8]} 55. Bd1 {[%clk 0:00:03.3]} 55... Kf7 {[%clk
0:00:18.4]} 56. Rf2 {[%clk 0:00:04]} 56... Kg7 {[%clk 0:00:18.5]} 57. Rf4 {[%clk
0:00:03.8]} 57... Rd8 {[%clk 0:00:19.1]} 58. Bxg4 {[%clk 0:00:05]} 58... Rd2+
{[%clk 0:00:19.2]} 59. Be2 {[%clk 0:00:05.5]} 59... Nd5 {[%clk 0:00:19.7]} 60.
Rg4+ {[%clk 0:00:05.9]} 60... Kf6 {[%clk 0:00:20.4]} 61. Rf3+ {[%clk 0:00:06.8]}
61... Ke7 {[%clk 0:00:21.2]} 62. Re4 {[%clk 0:00:05.8]} 62... Nf6 {[%clk
0:00:20.4]} 63. Re5 {[%clk 0:00:05]} 63... Nd7 {[%clk 0:00:19.2]} 64. Ree3
{[%clk 0:00:04.6]} 64... Rc6 {[%clk 0:00:18.4]} 65. Rf2 {[%clk 0:00:04.8]} 65...
Rcc2 {[%clk 0:00:18.2]} 66. Re4 {[%clk 0:00:03]} 66... Nf6 {[%clk 0:00:18.8]}
67. Re3 {[%clk 0:00:03.3]} 67... Ng4 {[%clk 0:00:19.7]} 68. Bxg4 {[%clk
0:00:04.5]} 68... Rxf2+ {[%clk 0:00:15.7]} 69. Kg1 {[%clk 0:00:04.9]} 69... Rg2+
{[%clk 0:00:16.2]} 70. Kf1 {[%clk 0:00:05.8]} 70... Rxh2 {[%clk 0:00:16]} 71.
Rxe6+ {[%clk 0:00:04.4]} 71... Kf7 {[%clk 0:00:16.6]} 72. Kg1 {[%clk 0:00:05]}
72... Rhg2+ {[%clk 0:00:17.1]} 73. Kf1 {[%clk 0:00:05.9]} 73... Rxg3 {[%clk
0:00:19]} 74. Re4 {[%clk 0:00:06.1]} 74... Kf6 {[%clk 0:00:15]} 75. Be2 {[%clk
0:00:05.4]} 75... Rxb3 {[%clk 0:00:14.8]} 76. Rd4 {[%clk 0:00:03.5]} 76... Rb1+
{[%clk 0:00:13.4]} 77. Kf2 {[%clk 0:00:04.7]} 77... Rbb2 {[%clk 0:00:14.2]} 78.
Re4 {[%clk 0:00:05.8]} 78... Ra2 {[%clk 0:00:15.2]} 79. Kf3 {[%clk 0:00:06]}
79... a5 {[%clk 0:00:15.3]} 80. Bb5 {[%clk 0:00:03.9]} 80... Ra3+ {[%clk
0:00:14]} 81. Kf4 {[%clk 0:00:04]} 81... Rf2+ {[%clk 0:00:14.3]} 82. Kg4 {[%clk
0:00:04.9]} 82... Rf5 {[%clk 0:00:12.7]} 83. Rf4 {[%clk 0:00:03.3]} 83... Rxf4+
{[%clk 0:00:11.9]} 84. Kxf4 {[%clk 0:00:05.2]} 84... Ke6 {[%clk 0:00:12.9]} 85.
Ke4 {[%clk 0:00:07.1]} 85... Kd6 {[%clk 0:00:14.1]} 86. Kd4 {[%clk 0:00:09]}
86... Ra1 {[%clk 0:00:13.3]} 87. Kc4 {[%clk 0:00:10.9]} 87... Rc1+ {[%clk
0:00:14.3]} 88. Kd4 {[%clk 0:00:12.2]} 88... Rc2 {[%clk 0:00:15.4]} 89. Kd3
{[%clk 0:00:13.4]} 89... Rc1 {[%clk 0:00:14.3]} 90. Kd4 {[%clk 0:00:14.9]} 90...
Rc7 {[%clk 0:00:14.7]} 91. Bc4 {[%clk 0:00:15]} 91... Rh7 {[%clk 0:00:14.5]} 92.
Bb5 {[%clk 0:00:16.2]} 92... Rh4+ {[%clk 0:00:15.3]} 93. Kd3 {[%clk 0:00:16.1]}
93... Kc5 {[%clk 0:00:17.2]} 94. Kc3 {[%clk 0:00:17.3]} 94... Rb4 {[%clk
0:00:17.5]} 95. Be8 {[%clk 0:00:14.8]} 95... Re4 {[%clk 0:00:17.1]} 96. Bb5
{[%clk 0:00:13.7]} 96... Re3+ {[%clk 0:00:18.1]} 97. Kd2 {[%clk 0:00:14.8]}
97... Kd4 {[%clk 0:00:19.1]} 98. Kc2 {[%clk 0:00:15.5]} 98... Re5 {[%clk
0:00:16.3]} 99. Kd2 {[%clk 0:00:14.8]} 99... Re4 {[%clk 0:00:14.7]} 100. Kc2
{[%clk 0:00:15.2]} 100... Rh4 {[%clk 0:00:15.4]} 101. Kb3 {[%clk 0:00:14.4]}
101... Rh2 {[%clk 0:00:15.4]} 102. Be8 {[%clk 0:00:13.1]} 102... Rf2 {[%clk
0:00:13.1]} 103. Bc6 {[%clk 0:00:11.7]} 103... Kc5 {[%clk 0:00:13.1]} 104. Bb5
{[%clk 0:00:11.9]} 104... Rf3+ {[%clk 0:00:13.6]} 105. Kc2 {[%clk 0:00:12.7]}
105... Kd4 {[%clk 0:00:14.6]} 106. Bd7 {[%clk 0:00:08.3]} 106... Rc3+ {[%clk
0:00:12.2]} 107. Kb2 {[%clk 0:00:08.8]} 107... Kc4 {[%clk 0:00:11.4]} 108. Bb5+
{[%clk 0:00:08]} 108... Kb4 {[%clk 0:00:12.1]} 109. Bd7 {[%clk 0:00:06.2]}
109... Rd3 {[%clk 0:00:11.8]} 110. Bb5 {[%clk 0:00:05.8]} 110... Rd2+ {[%clk
0:00:12]} 111. Kc1 {[%clk 0:00:05.2]} 111... Kc3 {[%clk 0:00:12.4]} 112. Be8
{[%clk 0:00:05.3]} 112... Re2 {[%clk 0:00:12.4]} 113. Bh5 {[%clk 0:00:04.1]}
113... Re1+ {[%clk 0:00:13.3]} 114. Bd1 {[%clk 0:00:04.9]} 114... Rg1 {[%clk
0:00:15.2]} 115. Kb1 {[%clk 0:00:06]} 115... Rxd1+ {[%clk 0:00:16.6]} 116. Ka2
{[%clk 0:00:07.9]} 116... Re1 {[%clk 0:00:17.1]} 117. Ka3 {[%clk 0:00:09.8]}
117... Ra1# {[%clk 0:00:18.8]} 0-1

[Event "GrandPrix_30.05"]
[Site "Chess.com"]
[Date "2020.05.30"]
[Round "7"]
[White "NikolaGry"]
[Black "PavelShkapenko"]
[Result "1/2-1/2"]
[WhiteElo "2207"]
[BlackElo "2405"]
[TimeControl "600+2"]
[EndTime "11:07:56 PDT"]
[Termination "Game drawn by agreement"]

1. b3 {[%clk 0:10:01.9]} 1... e5 {[%clk 0:09:52.1]} 2. Bb2 {[%clk 0:10:02.1]}
2... Nc6 {[%clk 0:09:53.7]} 3. c4 {[%clk 0:10:03]} 3... Nf6 {[%clk 0:09:51.1]}
4. e3 {[%clk 0:10:03.4]} 4... d5 {[%clk 0:09:46.8]} 5. cxd5 {[%clk 0:10:03.3]}
5... Nxd5 {[%clk 0:09:48.4]} 6. a3 {[%clk 0:10:02.6]} 6... Be7 {[%clk 0:09:34]}
7. d3 {[%clk 0:10:01.7]} 7... O-O {[%clk 0:09:34.3]} 8. Nf3 {[%clk 0:10:02]}
8... f6 {[%clk 0:09:35.1]} 9. Be2 {[%clk 0:10:00.6]} 9... Be6 {[%clk 0:09:35.5]}
10. O-O {[%clk 0:10:00.2]} 10... Na5 {[%clk 0:09:34.4]} 11. b4 {[%clk 0:09:31]}
11... Nc6 {[%clk 0:09:35.3]} 12. Nbd2 {[%clk 0:09:30.3]} 12... a6 {[%clk
0:09:33.5]} 1/2-1/2

[Event "GrandPrix_30.05"]
[Site "Chess.com"]
[Date "2020.05.30"]
[Round "7"]
[White "RovenVogel"]
[Black "FCLitras"]
[Result "1/2-1/2"]
[WhiteElo "2429"]
[BlackElo "2236"]
[TimeControl "600+2"]
[EndTime "11:09:39 PDT"]
[Termination "Game drawn by agreement"]

1. d4 {[%clk 0:10:00.9]} 1... Nf6 {[%clk 0:10:00.1]} 2. c4 {[%clk 0:09:52.8]}
2... e6 {[%clk 0:10:00.8]} 3. Nf3 {[%clk 0:09:52.5]} 3... b6 {[%clk 0:09:59.9]}
4. Bf4 {[%clk 0:09:48.3]} 4... Bb7 {[%clk 0:09:59.4]} 5. Nbd2 {[%clk 0:09:44.3]}
5... Be7 {[%clk 0:09:52.8]} 6. e3 {[%clk 0:09:35.1]} 6... O-O {[%clk 0:09:51.5]}
7. h3 {[%clk 0:09:33.4]} 7... d6 {[%clk 0:09:46.6]} 8. Be2 {[%clk 0:09:27.9]}
8... c5 {[%clk 0:09:47.6]} 9. O-O {[%clk 0:09:01.2]} 9... cxd4 {[%clk
0:09:42.4]} 10. exd4 {[%clk 0:08:56.2]} 10... d5 {[%clk 0:09:43.6]} 11. Rc1
{[%clk 0:08:15.5]} 11... dxc4 {[%clk 0:09:41.6]} 12. Nxc4 {[%clk 0:08:13.4]}
1/2-1/2

[Event "GrandPrix_30.05"]
[Site "Chess.com"]
[Date "2020.05.30"]
[Round "7"]
[White "Cocolino12"]
[Black "Dolphin_2010"]
[Result "1-0"]
[WhiteElo "2210"]
[BlackElo "2058"]
[TimeControl "600+2"]
[EndTime "11:11:43 PDT"]
[Termination "Cocolino12 won by resignation"]

1. e4 {[%clk 0:10:01.9]} 1... c6 {[%clk 0:10:00.3]} 2. d4 {[%clk 0:10:02]} 2...
d5 {[%clk 0:10:01.9]} 3. exd5 {[%clk 0:10:02.8]} 3... cxd5 {[%clk 0:10:03.8]} 4.
c4 {[%clk 0:10:03.3]} 4... Nf6 {[%clk 0:10:04.2]} 5. Nc3 {[%clk 0:10:03.4]} 5...
g6 {[%clk 0:10:03.3]} 6. Qb3 {[%clk 0:10:03]} 6... Bg7 {[%clk 0:09:58.2]} 7.
cxd5 {[%clk 0:10:02.9]} 7... O-O {[%clk 0:09:58.8]} 8. Be2 {[%clk 0:10:02.2]}
8... Na6 {[%clk 0:09:56.8]} 9. Bf3 {[%clk 0:09:58.6]} 9... Nc7 {[%clk 0:09:52]}
10. Bf4 {[%clk 0:09:40.9]} 10... Bg4 {[%clk 0:09:39.1]} 11. Bxg4 {[%clk
0:09:31.2]} 11... Nxg4 {[%clk 0:09:41]} 12. Nf3 {[%clk 0:09:32.3]} 12... b6
{[%clk 0:09:34.2]} 13. O-O {[%clk 0:09:23.4]} 13... Nf6 {[%clk 0:09:32.5]} 14.
Bxc7 {[%clk 0:09:11.1]} 14... Qxc7 {[%clk 0:09:34.4]} 15. Ne5 {[%clk 0:09:12.1]}
15... Rad8 {[%clk 0:09:27.3]} 16. Rfe1 {[%clk 0:09:04.1]} 16... Rfe8 {[%clk
0:08:54.5]} 17. Nxf7 {[%clk 0:08:52.4]} 17... Ng4 {[%clk 0:08:48.4]} 18. Nh6+
{[%clk 0:08:22.2]} 18... Nxh6 {[%clk 0:08:09.9]} 19. d6+ {[%clk 0:08:21.6]}
19... Qc4 {[%clk 0:08:10.8]} 20. Qxc4+ {[%clk 0:08:22]} 20... e6 {[%clk
0:08:12.7]} 21. d5 {[%clk 0:08:02.3]} 21... e5 {[%clk 0:08:09]} 22. Ne4 {[%clk
0:07:58.7]} 22... Nf5 {[%clk 0:08:08.5]} 23. Qc7 {[%clk 0:07:49.5]} 1-0

[Event "GrandPrix_30.05"]
[Site "Chess.com"]
[Date "2020.05.30"]
[Round "7"]
[White "Kezin_Roman"]
[Black "ploky25"]
[Result "1-0"]
[WhiteElo "2434"]
[BlackElo "2225"]
[TimeControl "600+2"]
[EndTime "11:12:49 PDT"]
[Termination "Kezin_Roman won by resignation"]

1. d4 {[%clk 0:10:01.9]} 1... Nf6 {[%clk 0:09:59.7]} 2. c4 {[%clk 0:10:03.2]}
2... e6 {[%clk 0:09:59.2]} 3. g3 {[%clk 0:10:04.6]} 3... Bb4+ {[%clk 0:09:46.9]}
4. Nd2 {[%clk 0:10:05.1]} 4... d5 {[%clk 0:09:35.3]} 5. Bg2 {[%clk 0:10:06]}
5... O-O {[%clk 0:09:32.9]} 6. a3 {[%clk 0:10:06.5]} 6... Be7 {[%clk 0:09:18.9]}
7. Ngf3 {[%clk 0:10:06.8]} 7... b6 {[%clk 0:09:19]} 8. cxd5 {[%clk 0:10:07.6]}
8... exd5 {[%clk 0:09:18.8]} 9. O-O {[%clk 0:10:09]} 9... Bb7 {[%clk 0:09:12.4]}
10. Nb1 {[%clk 0:10:05.7]} 10... Na6 {[%clk 0:09:03.8]} 11. Nc3 {[%clk
0:10:06.8]} 11... c5 {[%clk 0:09:00.3]} 12. Bf4 {[%clk 0:09:56.6]} 12... Re8
{[%clk 0:08:59]} 13. Rc1 {[%clk 0:09:57.1]} 13... h6 {[%clk 0:08:58.3]} 14. Qb3
{[%clk 0:09:51.8]} 14... Ne4 {[%clk 0:08:38.6]} 15. Rfd1 {[%clk 0:09:51.3]}
15... c4 {[%clk 0:07:22.9]} 16. Qa4 {[%clk 0:09:26.9]} 16... Nxc3 {[%clk
0:07:22.7]} 17. Rxc3 {[%clk 0:09:28.8]} 17... Nc7 {[%clk 0:07:21.4]} 18. Ne5
{[%clk 0:09:23.6]} 18... b5 {[%clk 0:07:01.4]} 19. Qc2 {[%clk 0:09:24.3]} 19...
Ne6 {[%clk 0:06:56.5]} 20. Be3 {[%clk 0:09:22.3]} 20... b4 {[%clk 0:06:44.6]}
21. axb4 {[%clk 0:09:24.2]} 21... Bxb4 {[%clk 0:06:44.8]} 22. Rxc4 {[%clk
0:09:25.7]} 22... dxc4 {[%clk 0:06:23.9]} 23. Bxb7 {[%clk 0:09:27.6]} 23... Rb8
{[%clk 0:06:24.4]} 24. Bg2 {[%clk 0:09:25.2]} 24... Qd6 {[%clk 0:06:04.1]} 25.
Nxc4 {[%clk 0:09:24.9]} 25... Qc7 {[%clk 0:06:01.1]} 26. d5 {[%clk 0:09:26]}
26... Nc5 {[%clk 0:06:00.6]} 27. Bf4 {[%clk 0:09:26.9]} 1-0

[Event "GrandPrix_30.05"]
[Site "Chess.com"]
[Date "2020.05.30"]
[Round "7"]
[White "DenLaz"]
[Black "MirMan90"]
[Result "1-0"]
[WhiteElo "2576"]
[BlackElo "2292"]
[TimeControl "600+2"]
[EndTime "11:13:55 PDT"]
[Termination "DenLaz won by resignation"]

1. d4 {[%clk 0:10:01.1]} 1... Nf6 {[%clk 0:09:59.8]} 2. c4 {[%clk 0:10:01.8]}
2... g6 {[%clk 0:10:01.2]} 3. g3 {[%clk 0:10:02.4]} 3... c5 {[%clk 0:10:02]} 4.
d5 {[%clk 0:10:03.7]} 4... d6 {[%clk 0:10:02.7]} 5. Bg2 {[%clk 0:10:04.4]} 5...
b5 {[%clk 0:10:03.3]} 6. cxb5 {[%clk 0:10:04.6]} 6... a6 {[%clk 0:10:04.6]} 7.
bxa6 {[%clk 0:10:05.2]} 7... Bg7 {[%clk 0:10:06]} 8. Nc3 {[%clk 0:10:05.9]} 8...
O-O {[%clk 0:10:06]} 9. Nf3 {[%clk 0:10:06]} 9... Nbd7 {[%clk 0:10:05.6]} 10.
Rb1 {[%clk 0:10:04.1]} 10... Qa5 {[%clk 0:10:00.1]} 11. O-O {[%clk 0:10:02.2]}
11... Nb6 {[%clk 0:09:58.6]} 12. Bd2 {[%clk 0:09:49.2]} 12... Qxa6 {[%clk
0:09:44.1]} 13. Nh4 {[%clk 0:09:39.4]} 13... Bb7 {[%clk 0:09:26.4]} 14. e4
{[%clk 0:09:39]} 14... Nc4 {[%clk 0:09:21.5]} 15. Re1 {[%clk 0:09:36.4]} 15...
Nxd2 {[%clk 0:09:18.5]} 16. Qxd2 {[%clk 0:09:38.3]} 16... Nd7 {[%clk 0:09:14.3]}
17. f4 {[%clk 0:09:38]} 17... Qc4 {[%clk 0:09:01.7]} 18. Nf3 {[%clk 0:09:31.7]}
18... Bxc3 {[%clk 0:07:52.2]} 19. bxc3 {[%clk 0:08:52.8]} 19... Rxa2 {[%clk
0:07:52]} 20. Rb2 {[%clk 0:08:54]} 20... Rfa8 {[%clk 0:07:37.4]} 21. Bf1 {[%clk
0:08:44.8]} 21... Qa4 {[%clk 0:07:37.2]} 22. Bb5 {[%clk 0:08:35.9]} 22... Qxb5
{[%clk 0:07:13.1]} 23. Rxb5 {[%clk 0:08:35]} 23... Rxd2 {[%clk 0:07:14.3]} 24.
Nxd2 {[%clk 0:08:36.9]} 24... Bc8 {[%clk 0:07:10.8]} 25. e5 {[%clk 0:08:25.2]}
25... Ra2 {[%clk 0:06:55.6]} 26. exd6 {[%clk 0:08:02.5]} 26... exd6 {[%clk
0:06:48.1]} 27. Re8+ {[%clk 0:08:00.5]} 27... Kg7 {[%clk 0:06:49.1]} 28. Rxc8
{[%clk 0:07:56.2]} 28... Rxd2 {[%clk 0:06:50.2]} 29. Rb7 {[%clk 0:07:45]} 29...
Nf6 {[%clk 0:06:49.3]} 30. Rcc7 {[%clk 0:07:44.4]} 30... Nxd5 {[%clk 0:06:45.2]}
31. Rxf7+ {[%clk 0:07:43.5]} 31... Kg8 {[%clk 0:06:46.5]} 32. Rfd7 {[%clk
0:07:36.7]} 1-0